Cogmind - Beta 14 @@@ ROGUE MODE // 2024.08.12 @ 12:28:05 Player: RedTheSorceress Result: Destroyed by P-80 Master with Gamma Rifle Performance ------------- Evolutions (7) 3500 Regions Visited (10) 2000 Robots Destroyed (1) 5 Value Destroyed (35) 35 Prototype IDs (0) 0 Alien Tech Used (0) 0 Bonus (4085) 4085 TOTAL SCORE: 9625 Bonus ------- Pacifist 4085 Cogmind --------- Core Integrity 0/1300 Matter 252/300 Energy 90/100 System Corruption 4% Temperature Cool (6) Movement Flying (27) Location -3/Research Parts ------- > --- POWER (2) -------- (None) > --- PROPULSION (11) -- Improved Surge Thruster > --- UTILITY (6) ------ (None) > --- WEAPON (2) ------- (None) > --- INVENTORY (5) ---- Micro Nuclear Core Wheel Improved Propulsion Shielding Improved Propulsion Shielding Lance Peak State ------------ > --- POWER ------------ (None) > --- PROPULSION ------- Nuclear Pulse Array > --- UTILITY ---------- Structural Scanner Advanced Sensor Array Improved Propulsion Shielding Improved Propulsion Shielding Improved Propulsion Shielding Improved Hacking Suite > --- WEAPON ----------- (None) > --- INVENTORY -------- Micro Nuclear Core Wheel Improved Propulsion Shielding Lance [Rating: 33] Favorites ----------- Power Light Ion Engine Engine Light Ion Engine Propulsion Aluminum Leg Treads Light Treads Leg Aluminum Leg Flight Unit Xenon Bombardment Thruster Utility Improved Propulsion Shielding Device Structural Scanner Storage Small Storage Unit Hackware Improved Hacking Suite Protection Improved Propulsion Shielding Weapon Small Laser Energy Gun Small Laser Ballistic Gun Assault Rifle Slashing Weapon Scythe Build | -11 -10 -10 -9 -9 -8 -7 -6 -5 -4 -3 ------- Run | Yrd Mat Min Mat Sto Mat Fac Fac Fac Fac Res Slots Evolved 14 | . . . 2 . 2 2 2 2 2 2 Power 1 | . . . . . . . . . . 1 Propulsion 9 | . . . 2 . 2 2 . . 2 1 Utility 4 | . . . . . . . 2 2 . . Weapon . | . . . . . . . . . . . Parts Attached 15 | . . . 2 . 1 1 3 2 5 1 Power 1 | . . . . . . . 1 . . . Engine 1 | . . . . . . . 1 . . . Core . | . . . . . . . . . . . Reactor . | . . . . . . . . . . . Propulsion 6 | . . . 2 . 1 1 . 1 . 1 Treads 3 | . . . 2 . 1 . . . . . Leg . | . . . . . . . . . . . Wheel . | . . . . . . . . . . . Hover . | . . . . . . . . . . . Flight 3 | . . . . . . 1 . 1 . 1 Utility 7 | . . . . . . . 1 1 5 . Device 2 | . . . . . . . 1 . 1 . Storage . | . . . . . . . . . . . Processor . | . . . . . . . . . . . Hackware 1 | . . . . . . . . 1 . . Protection 4 | . . . . . . . . . 4 . Artifact . | . . . . . . . . . . . Weapon 1 | . . . . . . . 1 . . . Energy Gun . | . . . . . . . . . . . Energy Cannon . | . . . . . . . . . . . Ballistic Gun . | . . . . . . . . . . . Ballistic Cannon . | . . . . . . . . . . . Launcher . | . . . . . . . . . . . Special Weapon . | . . . . . . . . . . . Impact Weapon . | . . . . . . . . . . . Slashing Weapon 1 | . . . . . . . 1 . . . Piercing Weapon . | . . . . . . . . . . . Special Melee Weapon . | . . . . . . . . . . . Unidentified Prototypes . | . . . . . . . . . . . Parts Lost 13 | . . . . . 5 2 . 3 1 2 Power 1 | . . . . . . . . 1 . . Propulsion 7 | . . . . . 4 1 . 1 . 1 Utility 2 | . . . . . . . . . 1 1 Weapon 3 | . . . . . 1 1 . 1 . . Highest Loss Streak 4 | . . . . . 4 1 . 2 1 2 To Critical Strikes 1 | . . . . . 1 . . . . . Average Slot Usage (%) 27 | . . 57 66 66 50 8 23 22 32 9 Treads 4 | . . . 22 22 14 4 . . . . Leg 4 | . . 28 22 22 18 . . . . . Flight 2 | . . . . . . . 6 6 5 1 Device 2 | . . . . . . . 6 5 6 1 Hackware 1 | . . . . . . . . 1 5 2 Protection 2 | . . . . . . . . . 14 3 Energy Gun 3 | . . 14 11 11 9 2 . . . . Ballistic Gun 2 | . . 14 11 11 9 . . . . . Slashing Weapon 1 | . . . . . . . 3 5 . . Peak Build Rating 33 | 5 4 4 6 6 7 4 9 26 33 32 Average Rating 11 | 5 4 4 5 6 5 2 7 13 30 11 On Entrance 8 | 6 4 4 4 6 6 3 4 9 19 32 Naked Turns 79 | . . . . . . 49 . . . 30 Heaviest Build 9 | 3 3 3 3 3 3 1 6 6 9 7 Greatest Support 19 | 3 3 3 3 3 3 6 6 19 13 13 Greatest Overweight (x) 2 | . . . . . . . . . . 2 Average Overweight (x) . | . . . . . . . . . . . Largest Inventory Capacity 8 | 8 5 5 5 5 5 5 5 5 5 5 Average Capacity 5 | 8 5 5 5 5 5 5 5 5 5 5 Most Carried 6 | 6 5 5 4 3 4 5 3 3 4 5 Average Carried 3 | 6 5 5 3 3 3 4 2 2 3 4 Final Capacity 5 | 5 5 5 5 5 5 5 5 5 5 5 Final Carried 5 | 5 5 5 3 3 4 4 2 3 4 5 Class Distribution -------------------- 100% | Mutant Dominant Class ---------------- Mutant | -9/Materials Mutant | -9/Storage Mutant | -8/Materials Mutant | -7/Factory Mutant | -6/Factory Mutant | -5/Factory Mutant | -4/Factory Mutant | -3/Research Resources | -11 -10 -10 -9 -9 -8 -7 -6 -5 -4 -3 ----------- Run | Yrd Mat Min Mat Sto Mat Fac Fac Fac Fac Res Matter Collected 244 | 200 . . . . 2 . . . . 42 Remotely . | . . . . . . . . . . . Salvage Created 35 | . . . . . . . . . . 35 Parts 4 | . . . . . . . . . . 4 Haulers Intercepted . | . . . . . . . . . . . Recyclers Shooed . | . . . . . . . . . . . Parts Field Recycled . | . . . . . . . . . . . Retrieved Matter . | . . . . . . . . . . . Parts Self-Destructed . | . . . . . . . . . . . Prevented . | . . . . . . . . . . . Kills | -11 -10 -10 -9 -9 -8 -7 -6 -5 -4 -3 ------- Run | Yrd Mat Min Mat Sto Mat Fac Fac Fac Fac Res Combat Hostiles Destroyed 1 | . . . . . . . . . . 1 Melee 1 | . . . . . . . . . . 1 Classes Destroyed 1 | . . . . . . . . . . 1 Cutter 1 | . . . . . . . . . . 1 Best Kill Streak 1 | . . . . . . . . . . 1 Combat Bots Only 1 | . . . . . . . . . . 1 Max Kills in Single Turn 1 | . . . . . . . . . . 1 Gunslinging . | . . . . . . . . . . . Exploded . | . . . . . . . . . . . Melee 1 | . . . . . . . . . . 1 Uniques/NPCs Destroyed . | . . . . . . . . . . . Combat | -11 -10 -10 -9 -9 -8 -7 -6 -5 -4 -3 -------- Run | Yrd Mat Min Mat Sto Mat Fac Fac Fac Fac Res Hostile Shots Fired 292 | . . 3 . 21 65 40 6 41 22 94 Missed 131 | . . . . 7 26 18 4 19 14 43 Damage Taken 3152 | . . 34 . 192 592 335 30 435 161 1373 Core 2069 | . . 13 . 39 193 207 . 247 67 1303 Absorbed by Shields 29 | . . . . . . 29 . . . . Redirected to Shielding 68 | . . . . . . . . . 46 22 Core Remaining (%) 85 | 100 . 94 . 90 64 70 100 75 94 . Volleys Fired . | . . . . . . . . . . . Largest . | . . . . . . . . . . . Hottest . | . . . . . . . . . . . Shots Fired . | . . . . . . . . . . . Gun . | . . . . . . . . . . . Cannon . | . . . . . . . . . . . Launcher . | . . . . . . . . . . . Special . | . . . . . . . . . . . Kinetic . | . . . . . . . . . . . Thermal . | . . . . . . . . . . . Explosive . | . . . . . . . . . . . Electromagnetic . | . . . . . . . . . . . Robot Hit Streak . | . . . . . . . . . . . Robot Miss Streak . | . . . . . . . . . . . Penetration Max . | . . . . . . . . . . . Secondary Targets . | . . . . . . . . . . . Shots Hit Robots . | . . . . . . . . . . . Core Hits 3 | . . . . . 1 . . . . 2 Critical Kills . | . . . . . . . . . . . Critical Parts Destroyed . | . . . . . . . . . . . Critical Strikes . | . . . . . . . . . . . Melee Attacks 1 | . . . . . . . . 1 . . Impact . | . . . . . . . . . . . Slashing 1 | . . . . . . . . 1 . . Piercing . | . . . . . . . . . . . Sneak Attacks . | . . . . . . . . . . . Combat Hostiles . | . . . . . . . . . . . Follow-up Attacks . | . . . . . . . . . . . Damage Inflicted 79 | . . . . . 33 33 . . . 13 Guns . | . . . . . . . . . . . Cannons . | . . . . . . . . . . . Explosions . | . . . . . . . . . . . Melee . | . . . . . . . . . . . Ramming 79 | . . . . . 33 33 . . . 13 Kinetic . | . . . . . . . . . . . Thermal . | . . . . . . . . . . . Explosive . | . . . . . . . . . . . Electromagnetic . | . . . . . . . . . . . Impact . | . . . . . . . . . . . Slashing . | . . . . . . . . . . . Piercing . | . . . . . . . . . . . Highest Corruption 3 | . . . . . . 3 . 1 . 3 Average Corruption 2 | . . . . . . 2 . 1 . 2 Corruption Purged . | . . . . . . . . . . . Corruption Blocked . | . . . . . . . . . . . Effects 8 | . . . . . . 3 . 2 . 3 Message Errors 2 | . . . . . . 1 . . . 1 Matter Fused 1 | . . . . . . 1 . . . . Heat Flow Errors 2 | . . . . . . . . . . 2 Energy Discharges 1 | . . . . . . . . 1 . . Data Loss (minor) 2 | . . . . . . 1 . 1 . . Overload Shots . | . . . . . . . . . . . Overflow Damage . | . . . . . . . . . . . Projectiles . | . . . . . . . . . . . Explosions . | . . . . . . . . . . . Melee . | . . . . . . . . . . . Knockbacks . | . . . . . . . . . . . Impact . | . . . . . . . . . . . Kinetic . | . . . . . . . . . . . Secondary . | . . . . . . . . . . . Self-Inflicted Damage 36 | . . . . . 14 16 . . . 6 Shots . | . . . . . . . . . . . Rammed 12 | . . . . . 6 2 . . . 4 Targets Rammed 12 | . . . . . 6 2 . . . 4 Kicked . | . . . . . . . . . . . Crushed . | . . . . . . . . . . . Highest Temperature 171 | . . . . . . . . . . 171 Average Temperature 89 | . . . . . . . . . . 89 Received Heat Transfer 513 | . . 21 . 72 117 213 . 45 9 36 Siege Activations . | . . . . . . . . . . . Robots Corrupted . | . . . . . . . . . . . Combat Hostiles . | . . . . . . . . . . . Parts Fried . | . . . . . . . . . . . Impact Corruptions . | . . . . . . . . . . . Robots Melted . | . . . . . . . . . . . Combat Hostiles . | . . . . . . . . . . . Parts Melted . | . . . . . . . . . . . Heat Transferred . | . . . . . . . . . . . Parts Sabotaged . | . . . . . . . . . . . Parts Stolen . | . . . . . . . . . . . Parts Stripped . | . . . . . . . . . . . Power Chain Reactions . | . . . . . . . . . . . Alert | -11 -10 -10 -9 -9 -8 -7 -6 -5 -4 -3 ------- Run | Yrd Mat Min Mat Sto Mat Fac Fac Fac Fac Res Peak Influence 271 | . 15 5 1 142 122 201 116 253 214 271 Initial 121 | . . 5 1 . 59 41 98 56 121 111 Average 113 | . 11 5 1 81 83 86 110 130 153 184 Maximum Alert Level 1 | . . . . . . 1 . 1 1 1 Low Security (%) 87 | 100 100 100 100 100 100 97 100 75 81 62 Level 1 12 | . . . . . . 2 . 24 18 37 Level 2 . | . . . . . . . . . . . Level 3 . | . . . . . . . . . . . Level 4 . | . . . . . . . . . . . Level 5 . | . . . . . . . . . . . High Security . | . . . . . . . . . . . Max Security . | . . . . . . . . . . . Squads Dispatched 11 | . . . . 1 3 2 . 2 1 2 Investigation 6 | . . . . . 1 1 . 2 1 1 Extermination . | . . . . . . . . . . . Reinforcement 5 | . . . . 1 2 1 . . . 1 Assault . | . . . . . . . . . . . Garrison . | . . . . . . . . . . . Intercept . | . . . . . . . . . . . Searches Triggered . | . . . . . . . . . . . Construction Impeded . | . . . . . . . . . . . Haulers Reinforced . | . . . . . . . . . . . Active Scanning Responses . | . . . . . . . . . . . Cargo Convoy Interrupts . | . . . . . . . . . . . Stealth | -11 -10 -10 -9 -9 -8 -7 -6 -5 -4 -3 --------- Run | Yrd Mat Min Mat Sto Mat Fac Fac Fac Fac Res Distress Signals 2 | . . . . 1 1 . . . . . Communications Jammed . | . . . . . . . . . . . Distress Signals . | . . . . . . . . . . . Times Spotted 87 | . 1 2 . 9 18 12 4 16 9 16 Peak Tracking Total 16 | . 1 2 . 9 16 7 4 9 7 15 Tactical Retreats 13 | . . . . 1 . 4 . 4 2 2 Traps | -11 -10 -10 -9 -9 -8 -7 -6 -5 -4 -3 ------- Run | Yrd Mat Min Mat Sto Mat Fac Fac Fac Fac Res Traps Triggered 2 | . . . . . . 2 . . . . Indirectly . | . . . . . . . . . . . Trap Hack Attempts . | . . . . . . . . . . . Triggered . | . . . . . . . . . . . Disarmed . | . . . . . . . . . . . Reprogrammed 6 | . . . . . 6 . . . . . Reused . | . . . . . . . . . . . Traps Extracted . | . . . . . . . . . . . Installed . | . . . . . . . . . . . Triggered . | . . . . . . . . . . . Machines | -11 -10 -10 -9 -9 -8 -7 -6 -5 -4 -3 ---------- Run | Yrd Mat Min Mat Sto Mat Fac Fac Fac Fac Res Machines Disabled . | . . . . . . . . . . . Max in Single Turn . | . . . . . . . . . . . Machines Repaired . | . . . . . . . . . . . Machines Dismantled . | . . . . . . . . . . . Machines Sabotaged . | . . . . . . . . . . . Overloaded Fab Kills . | . . . . . . . . . . . Hacking | -11 -10 -10 -9 -9 -8 -7 -6 -5 -4 -3 --------- Run | Yrd Mat Min Mat Sto Mat Fac Fac Fac Fac Res Machines Accessed 14 | . . . . 1 3 1 1 4 2 2 Terminals 13 | . . . . 1 3 1 1 4 2 1 Fabricators 1 | . . . . . . . . . . 1 Repair Stations . | . . . . . . . . . . . Recycling Units . | . . . . . . . . . . . Scanalyzers . | . . . . . . . . . . . Garrison Access . | . . . . . . . . . . . Total Hacks 43 | . . . . 2 12 3 4 10 7 5 Successful 13 | . . . . 1 3 . 1 3 2 3 Failed 30 | . . . . 1 9 3 3 7 5 2 Catastrophic 5 | . . . . . 3 1 . 1 . . Database Lockouts . | . . . . . . . . . . . Manual 21 | . . . . . 7 . . 4 5 5 Terminals 41 | . . . . 2 12 3 4 10 7 3 Fabricators 2 | . . . . . . . . . . 2 Repair Stations . | . . . . . . . . . . . Recycling Units . | . . . . . . . . . . . Scanalyzers . | . . . . . . . . . . . Garrison Access . | . . . . . . . . . . . Terminal Hacks 9 | . . . . 1 3 . 1 1 2 1 Open Door 1 | . . . . 1 . . . . . . Level Access Points 3 | . . . . . 1 . 1 . 1 . Terminal Index 2 | . . . . . . . . 1 1 . Locate Traps 1 | . . . . . 1 . . . . . Reprogram Traps 1 | . . . . . 1 . . . . . Zone Layout 1 | . . . . . . . . . . 1 Fabricator Hacks . | . . . . . . . . . . . Repair Station Hacks . | . . . . . . . . . . . Recycling Unit Hacks . | . . . . . . . . . . . Scanalyzer . | . . . . . . . . . . . Garrison Access Hacks . | . . . . . . . . . . . Unauthorized Hacks 4 | . . . . . . . . 2 . 2 Terminals 3 | . . . . . . . . 2 . 1 Botnet 2 | . . . . . . . . 2 . . Disrupt 1 | . . . . . . . . . . 1 Fabricators 1 | . . . . . . . . . . 1 Overload 1 | . . . . . . . . . . 1 Repair Stations . | . . . . . . . . . . . Recycling Units . | . . . . . . . . . . . Scanalyzers . | . . . . . . . . . . . Garrison Access . | . . . . . . . . . . . Data Cores Recovered . | . . . . . . . . . . . Used . | . . . . . . . . . . . Hacking Detections 13 | . . . . . 3 1 1 4 2 2 Full Trace Events 6 | . . . . . 2 1 . 2 1 . Feedback Events . | . . . . . . . . . . . Feedback Blocked . | . . . . . . . . . . . Robot Schematics Acquired . | . . . . . . . . . . . Robots Built . | . . . . . . . . . . . Authchips . | . . . . . . . . . . . Time . | . . . . . . . . . . . Total Robot Build Rating . | . . . . . . . . . . . Part Schematics Acquired . | . . . . . . . . . . . Parts Built . | . . . . . . . . . . . Authchips . | . . . . . . . . . . . Time . | . . . . . . . . . . . Total Part Build Rating . | . . . . . . . . . . . Parts Repaired . | . . . . . . . . . . . Time . | . . . . . . . . . . . Parts Recycled . | . . . . . . . . . . . Recycled Matter . | . . . . . . . . . . . Retrieved Matter . | . . . . . . . . . . . Retrieved Components . | . . . . . . . . . . . Parts Scanalyzed . | . . . . . . . . . . . Part Schematics Acquired . | . . . . . . . . . . . Parts Damaged . | . . . . . . . . . . . Bothacking | -11 -10 -10 -9 -9 -8 -7 -6 -5 -4 -3 ------------ Run | Yrd Mat Min Mat Sto Mat Fac Fac Fac Fac Res Used RIF Installer . | . . . . . . . . . . . Robots Hacked . | . . . . . . . . . . . Non-combat . | . . . . . . . . . . . Combat . | . . . . . . . . . . . Robot Hacks Applied . | . . . . . . . . . . . Relay Couplers Released . | . . . . . . . . . . . Fabnet Peak Effective % . | . . . . . . . . . . . Robots Rewired . | . . . . . . . . . . . Allies Hacked . | . . . . . . . . . . . Hacks Repelled . | . . . . . . . . . . . Allies | -11 -10 -10 -9 -9 -8 -7 -6 -5 -4 -3 -------- Run | Yrd Mat Min Mat Sto Mat Fac Fac Fac Fac Res Total Allies . | . . . . . . . . . . . Largest Group . | . . . . . . . . . . . Highest-Rated Group . | . . . . . . . . . . . Highest-Rated Ally . | . . . . . . . . . . . Total Orders . | . . . . . . . . . . . Ally Attacks . | . . . . . . . . . . . Total Damage . | . . . . . . . . . . . Kills . | . . . . . . . . . . . Allies Corrupted . | . . . . . . . . . . . Allies Melted . | . . . . . . . . . . . Intel | -11 -10 -10 -9 -9 -8 -7 -6 -5 -4 -3 ------- Run | Yrd Mat Min Mat Sto Mat Fac Fac Fac Fac Res Robot Analysis Total . | . . . . . . . . . . . Derelict Logs Recovered . | . . . . . . . . . . . Drone Launches . | . . . . . . . . . . . Drone Recoveries . | . . . . . . . . . . . Exploration | -11 -10 -10 -9 -9 -8 -7 -6 -5 -4 -3 ------------- Run | Yrd Mat Min Mat Sto Mat Fac Fac Fac Fac Res Turns Passed 924 | 1 4 14 30 55 120 202 66 185 137 110 Spaces Moved 1952 | 1 8 28 56 110 223 383 156 444 322 221 Core 882 | 1 8 28 56 110 223 319 . . . 137 Treads . | . . . . . . . . . . . Legs . | . . . . . . . . . . . Wheels . | . . . . . . . . . . . Hover . | . . . . . . . . . . . Flight 1070 | . . . . . . 64 156 444 322 84 Fastest Speed 27 | 50 50 50 50 50 50 40 40 37 40 27 Average Speed 44 | 50 50 50 50 50 50 48 40 39 40 46 Slowest Speed 150 | 50 50 50 50 50 50 50 40 40 40 150 Overloaded Moves 25 | . . . . . . . . . . 25 Propulsion Burnouts . | . . . . . . . . . . . Robots Hopped 26 | . . . . . . . 8 11 6 1 Cave-ins Triggered . | . . . . . . . . . . . Exploration Rate (%) 14 | 1 2 15 12 33 26 17 7 21 12 10 Regions Visited 10 Branch Regions 2 Pre-discovered Areas . | . . . . . . . . . . . Known Exits Taken 3 | . . . . . 1 . 1 . 1 . Unknown Exits Taken 7 | 1 1 1 1 1 . 1 . 1 . . Scrap Searched . | . . . . . . . . . . . Spaces Dug 1 | . . . . . . . . 1 . . Terrain Destroyed 1 | . . . . . . . . 1 . . Melee 1 | . . . . . . . . 1 . . Projectile . | . . . . . . . . . . . AOE . | . . . . . . . . . . . Terrain Rammed . | . . . . . . . . . . . Walls Destroyed . | . . . . . . . . . . . Machines Disabled . | . . . . . . . . . . . Actions | -11 -10 -10 -9 -9 -8 -7 -6 -5 -4 -3 --------- Run | Yrd Mat Min Mat Sto Mat Fac Fac Fac Fac Res Total 1970 | 2 7 27 57 109 230 399 150 440 321 228 Wait 4 | . . . . . . . . 4 . . Move 1895 | . 7 27 55 109 223 382 141 423 309 219 Hop 22 | . . . . . . . 6 9 6 1 Pick Up 4 | . . . . . 1 2 . 1 . . Fast Attach 10 | . . . . . 1 . 1 2 5 1 Attach 5 | . . . 2 . . 1 2 . . . Detach 2 | . . . . . . . . . 1 1 Swap . | . . . . . . . . . . . Drop 5 | 2 . . . . . 1 . . . 2 Fire . | . . . . . . . . . . . Melee 1 | . . . . . . . . 1 . . Ram 11 | . . . . . 5 2 . . . 4 Kick . | . . . . . . . . . . . Crush . | . . . . . . . . . . . Escape Stasis 11 | . . . . . . 11 . . . . Rewire . | . . . . . . . . . . . Trap . | . . . . . . . . . . . Miscellaneous . | . . . . . . . . . . . Route ------- -11/Scrapyard -10/Materials -10/Mines -9/Materials -9/Storage -8/Materials (discovered 3 exits: *Fac x3) -7/Factory -6/Factory (discovered 4 exits: *Fac x4) -5/Factory -4/Factory (discovered 4 exits: *Res x4) -3/Research History --------- Turn | Location | Event 2 | -11/Scrapyard | Discovered new exit (range 0) 2 | -11/Scrapyard | Entered Materials 2 | -10/Materials | Discovered new exit (range 7) 6 | -10/Materials | Entered Mines 15 | -10/Mines | Discovered new exit (range 12) 20 | -10/Mines | Entered Materials 20 | -9/Materials | Evolved 2 slots: Propulsion x2 44 | -9/Materials | Discovered new exit (range 14) 50 | -9/Materials | Entered Storage 98 | -9/Storage | Discovered new exit (range 16) 105 | -9/Storage | Entered Materials 105 | -8/Materials | Evolved 2 slots: Propulsion x2 133 | -8/Materials | Identified exit to Factory 225 | -8/Materials | Entered Factory 225 | -7/Factory | Evolved 2 slots: Propulsion x2 253 | -7/Factory | Lost 4 parts (3n1w) 312 | -7/Factory | Build established: Mutant 421 | -7/Factory | Discovered new exit (range 15) 427 | -7/Factory | Entered another Factory area 427 | -6/Factory | Evolved 2 slots: Utility x2 448 | -6/Factory | Identified exit to Factory 493 | -6/Factory | Entered another Factory area 493 | -5/Factory | Evolved 2 slots: Utility x2 521 | -5/Factory | Spotted B-75 Beast 671 | -5/Factory | Discovered new exit (range 16) 678 | -5/Factory | Entered another Factory area 678 | -4/Factory | Evolved 2 slots: Propulsion x2 776 | -4/Factory | Identified exit to Research 815 | -4/Factory | Entered Research 815 | -3/Research | Evolved 2 slots: Power x1, Propulsion x1 832 | -3/Research | Spotted B-86 Titan 859 | -3/Research | Core integrity fell below 50% 900 | -3/Research | Core integrity fell below 20% 925 | -3/Research | Destroyed by P-80 Master with Gamma Rifle Last Messages --------------- 00884_ Penetrated by Slug. 00884_ T-07 Excavator destroyed. 00886_ Imp. Hacking Suite severed. 00887_ K-01 Serf collects debris. 00889_ Penetrated by Slug. 00899_ C-35 Carver knocked back. 00899_ S-43 Plague destroyed. 00899_ Knocked back. 00900_ K-01 Serf collects debris. 00902_ System corrupted: Heat flow error (+217). 00912_ Slammed into C-35 Carver. 00914_ C-35 Carver destroyed. 00915_ Acquired 35 matter. 00916_ Acquired Imp. Surge Thruster. 00920_ K-01 Serf collects debris. 00920_ R-10 Processor collects Carbide Saw. 00921_ Slug penetrates R-10 Processor. 00921_ K-01 Serf destroyed. 00923_ NOJ9|MW19OI KV8W#,UMMB3MI=/UPUG&5HYBA 00924_ Slug penetrates Wall. Map ----- +----------------------------------------------------+ | ?????????????????????????????????????????????????? | | ?????????????????????????????????????????????????? | | ?????????????????????????????????????????????????? | | ?????????????????????????????????????????????????? | | ?????????????????????????????????????????????????? | | ?????????????????????????????????????????????????? | | ???????????########????########??????????????????? | | ???????????# =* #????# #??????????????????? | | ???????????# *= #????# #??????????????????? | | ???????????# #????# ! #??????????????????? | | ???????????# #????# #??????????????????? | | ???????????#! #????# #??????????????????? | | ????????????? ??????? ???????????????????? | | ?##############+###########+#+#??????????????????? | | =* / # #??????????????????? | | ########## #??????????????????? | | ??############ #????????# #??????????????????? | | ???????????#### #????????# #??????????????????? | | ???????????? # #???????## ##?????????????????? | | ????????????? # ######### =#?????????????????? | | ??????????????+ p #?????????????????? | | ??????????????# ## #?????????????????? | | ??????????????# ######?????????????????? | | ??????????????# #??????????????????????? | | ??????????????# #??????????????????????? | | ??????????????# @#??????????????????????? | | ??????????????# #??????????????????????? | | #+#???????????#### #??????????????????????? | | ????????????# #??????????????????????? | | ????????????# * R #??????????????????????? | | ! ????????????# #??????????????????????? | | ????????????# hRRs #??????????????????????? | | =########????## #??????????????????????? | | ## #?????#%% #??????????????????????? | | ## !#?????# h #####??????????????????? | | ## = #?????# ! ""G"?????????????????? | | #?? #?????#Y "" ""????????????????? | | |#?? #######R ?????????????? | | =%#? + ?????????????? | | =##+####"# ?????????????? | | ! k ??????????????? | | """ ??????????????? | | % ########### """ ? ??????????????? | | # ######## #?????????? ""??????????????????? | | # #??????# #?????????? ??????????????????? | | #+######?# +??????????? ?????????????????? | | ! #?# #??????????? ?????????????????? | | #?# ###????????? ###?????????????????? | | "" = #? #######???? #???????????????????? | | "" # ??????????????????????????? | +----------------------------------------------------+ Best States ------------- Heat Dissipation 46 Energy Generation 10 Energy Capacity 125 Matter Stores 300 Matter Capacity 300 Sight Range 16 Robot Scan Range 16 Terrain Scan Density 10 Propulsion Shielding 66 Evasion (%) 64 Offensive Hacking 12 Item Schematics ----------------- None Robot Schematics ------------------ None Fabricated ------------ Nothing Alien Tech Used ----------------- None Achievements -------------- None Challenges ------------ None Game ------ Seed FocalDataShockpuncher Manual? 0 Play Time 00:27:33 Cumulative 800.1 hours Start 2024.08.12 @ 12:00:54 End 2024.08.12 @ 12:28:05 Sessions 1 Manual Loads 0 Difficulty Rogue Special Mode None Game No. 526 Rogue 526 Adventurer 0 Explorer 0 Win Type - Total 114 Types 78/7/8/10/5/1/4/0/1 Lore% 71 Gallery% 81 Achievement% 82 Wizard Run 0 Options --------- Layout 1 ASCII 0 Keyboard 0 Movement Numpad Keybinds 0 Fullscreen 1 Font 24/Smallcaps Map View 50x35 Zoom Use 0% Tactical HUD 1 Map Filters NONE Filters NONE Steam 1 RUN: 7e90d88a-0340-4acc-a0a7-14f2d5838fdc